[Event "Early-Titled-Tuesday-Blitz-September-12-2023"]
[Site "Chess.com"]
[Date "2023.09.12"]
[Round "2"]
[White "djano"]
[Black "BlueWizzard"]
[Result "0-1"]
[WhiteElo "2625"]
[BlackElo "2980"]
[TimeControl "180+1"]
[EndTime "8:15:48 PDT"]
[Termination "BlueWizzard won by resignation"]

1. e4 {[%clk 0:03:00.9]} 1... g6 {[%clk 0:03:00.4]} 2. Nc3 {[%clk 0:02:59.8]}
2... Bg7 {[%clk 0:03:00.2]} 3. Bc4 {[%clk 0:03:00.4]} 3... e6 {[%clk 0:02:59.5]}
4. h4 {[%clk 0:02:57.8]} 4... Nf6 {[%clk 0:02:55.1]} 5. e5 {[%clk 0:02:51.1]}
5... Nd5 {[%clk 0:02:55.2]} 6. d4 {[%clk 0:02:48.3]} 6... d6 {[%clk 0:02:50]} 7.
Bg5 {[%clk 0:02:29.2]} 7... Ne7 {[%clk 0:02:36]} 8. Qe2 {[%clk 0:02:12.1]} 8...
h6 {[%clk 0:02:33.1]} 9. Bf4 {[%clk 0:02:10.3]} 9... Nbc6 {[%clk 0:02:20.2]} 10.
O-O-O {[%clk 0:02:09.2]} 10... d5 {[%clk 0:02:20.5]} 11. Bd3 {[%clk 0:02:02.6]}
11... Nxd4 {[%clk 0:02:18.2]} 12. Qe3 {[%clk 0:02:00]} 12... c5 {[%clk
0:02:16.6]} 13. Nf3 {[%clk 0:01:53.1]} 13... Qb6 {[%clk 0:02:06]} 14. Na4 {[%clk
0:01:20.7]} 14... Qa5 {[%clk 0:01:58.9]} 15. Nxc5 {[%clk 0:01:03.2]} 15... Nxf3
{[%clk 0:01:47.6]} 16. gxf3 {[%clk 0:01:04.1]} 16... Nc6 {[%clk 0:01:36.1]} 17.
a3 {[%clk 0:01:01.4]} 17... d4 {[%clk 0:01:33.7]} 18. Qe4 {[%clk 0:00:48.7]}
18... Qxc5 {[%clk 0:01:29.9]} 19. h5 {[%clk 0:00:48.2]} 19... g5 {[%clk
0:01:29.2]} 20. Bh2 {[%clk 0:00:48.5]} 20... Bxe5 {[%clk 0:01:24.2]} 21. f4
{[%clk 0:00:48.6]} 21... Bxf4+ {[%clk 0:01:23.4]} 22. Bxf4 {[%clk 0:00:49.5]}
22... gxf4 {[%clk 0:01:24.1]} 23. Qxf4 {[%clk 0:00:50.4]} 23... Qg5 {[%clk
0:01:21.8]} 24. Qxg5 {[%clk 0:00:50.3]} 24... hxg5 {[%clk 0:01:22.7]} 25. Be4
{[%clk 0:00:51]} 25... Bd7 {[%clk 0:01:22]} 26. h6 {[%clk 0:00:50]} 26... Ke7
{[%clk 0:01:20.8]} 27. h7 {[%clk 0:00:50.9]} 27... f5 {[%clk 0:01:17.7]} 0-1

[Event "Early-Titled-Tuesday-Blitz-September-12-2023"]
[Site "Chess.com"]
[Date "2023.09.12"]
[Round "2"]
[White "sokidze"]
[Black "dcremisi"]
[Result "1-0"]
[WhiteElo "2780"]
[BlackElo "2537"]
[TimeControl "180+1"]
[EndTime "8:15:56 PDT"]
[Termination "sokidze won by resignation"]

1. e4 {[%clk 0:03:00.9]} 1... e6 {[%clk 0:02:58.9]} 2. d4 {[%clk 0:03:00.9]}
2... d5 {[%clk 0:02:58.8]} 3. Nd2 {[%clk 0:03:01.6]} 3... a6 {[%clk 0:02:58.1]}
4. Bd3 {[%clk 0:02:59.6]} 4... dxe4 {[%clk 0:02:57.2]} 5. Nxe4 {[%clk
0:02:59.4]} 5... Nd7 {[%clk 0:02:57.7]} 6. Nf3 {[%clk 0:02:57.7]} 6... Ngf6
{[%clk 0:02:57.9]} 7. Nxf6+ {[%clk 0:02:45.5]} 7... Nxf6 {[%clk 0:02:53.6]} 8.
O-O {[%clk 0:02:45.3]} 8... Be7 {[%clk 0:02:53]} 9. a4 {[%clk 0:02:36]} 9... O-O
{[%clk 0:02:49.9]} 10. Qe2 {[%clk 0:02:36.3]} 10... b6 {[%clk 0:02:48.1]} 11. a5
{[%clk 0:02:28]} 11... b5 {[%clk 0:02:47.7]} 12. Rd1 {[%clk 0:02:19]} 12... Bb7
{[%clk 0:02:47.7]} 13. c4 {[%clk 0:02:03.9]} 13... bxc4 {[%clk 0:02:44.7]} 14.
Bxc4 {[%clk 0:02:04.8]} 14... Nd5 {[%clk 0:02:29.4]} 15. Bd2 {[%clk 0:01:58.9]}
15... Bd6 {[%clk 0:02:29]} 16. g3 {[%clk 0:01:29.7]} 16... Qf6 {[%clk
0:02:27.2]} 17. Ne5 {[%clk 0:01:29.8]} 17... Bxe5 {[%clk 0:02:24.8]} 18. dxe5
{[%clk 0:01:27.4]} 18... Qf5 {[%clk 0:02:24.5]} 19. Bd3 {[%clk 0:01:10.7]} 19...
Qh3 {[%clk 0:02:23.9]} 20. f3 {[%clk 0:01:10.5]} 20... Rfd8 {[%clk 0:02:12.3]}
21. Ra4 {[%clk 0:01:09.8]} 21... g5 {[%clk 0:00:54.5]} 22. Bxg5 {[%clk
0:01:06.7]} 22... Qh5 {[%clk 0:00:52.7]} 23. Bxd8 {[%clk 0:01:03.3]} 23... Rxd8
{[%clk 0:00:52.7]} 24. Rh4 {[%clk 0:01:03.7]} 1-0

[Event "Early-Titled-Tuesday-Blitz-September-12-2023"]
[Site "Chess.com"]
[Date "2023.09.12"]
[Round "2"]
[White "cthulhuuu"]
[Black "ivana_999"]
[Result "1-0"]
[WhiteElo "2455"]
[BlackElo "2038"]
[TimeControl "180+1"]
[EndTime "8:15:56 PDT"]
[Termination "cthulhuuu won by resignation"]

1. e4 {[%clk 0:03:00]} 1... e6 {[%clk 0:02:59.4]} 2. d3 {[%clk 0:03:00]} 2... d5
{[%clk 0:02:58.9]} 3. Nd2 {[%clk 0:03:00.4]} 3... c5 {[%clk 0:02:57.2]} 4. Ngf3
{[%clk 0:02:59.7]} 4... Nc6 {[%clk 0:02:56]} 5. g3 {[%clk 0:02:59.4]} 5... Nf6
{[%clk 0:02:56]} 6. Bg2 {[%clk 0:02:58.8]} 6... Be7 {[%clk 0:02:52.8]} 7. O-O
{[%clk 0:02:58.1]} 7... b6 {[%clk 0:02:52.3]} 8. Re1 {[%clk 0:02:56.5]} 8... Bb7
{[%clk 0:02:51]} 9. c3 {[%clk 0:02:46.9]} 9... h5 {[%clk 0:02:41.2]} 10. h4
{[%clk 0:02:46.3]} 10... g6 {[%clk 0:02:39.8]} 11. Qe2 {[%clk 0:02:44.6]} 11...
Qd7 {[%clk 0:02:33.8]} 12. a3 {[%clk 0:02:41.1]} 12... O-O-O {[%clk 0:02:30.2]}
13. b4 {[%clk 0:02:40.8]} 13... d4 {[%clk 0:02:23.7]} 14. c4 {[%clk 0:02:36.4]}
14... e5 {[%clk 0:02:19.3]} 15. b5 {[%clk 0:02:35.6]} 15... Na5 {[%clk
0:02:16.9]} 16. Nxe5 {[%clk 0:02:34.4]} 16... Qe8 {[%clk 0:02:11.6]} 17. f4
{[%clk 0:02:28.9]} 17... Kb8 {[%clk 0:02:10.3]} 18. Rb1 {[%clk 0:02:05.6]} 18...
Bd6 {[%clk 0:02:07.5]} 19. Ndf3 {[%clk 0:02:05.1]} 19... Qe7 {[%clk 0:02:01.8]}
20. Bd2 {[%clk 0:02:02.2]} 20... Nd7 {[%clk 0:01:54.9]} 21. Bxa5 {[%clk
0:01:59.4]} 21... bxa5 {[%clk 0:01:54.7]} 22. Nc6+ {[%clk 0:01:59.2]} 22... Bxc6
{[%clk 0:01:52.9]} 23. bxc6+ {[%clk 0:02:00]} 23... Nb6 {[%clk 0:01:53.4]} 24.
e5 {[%clk 0:01:58.6]} 24... Bc7 {[%clk 0:01:52.8]} 25. Qd2 {[%clk 0:01:57]}
25... Ka8 {[%clk 0:01:45]} 26. Ng5 {[%clk 0:01:55.4]} 26... Rhe8 {[%clk
0:01:38.4]} 27. Ne4 {[%clk 0:01:46]} 27... Qe6 {[%clk 0:01:31.2]} 28. Nxc5
{[%clk 0:01:37.2]} 28... Qe7 {[%clk 0:01:29.9]} 29. Ne4 {[%clk 0:01:30.9]} 29...
Qxa3 {[%clk 0:01:24.6]} 30. Nd6 {[%clk 0:01:28.5]} 30... Rf8 {[%clk 0:01:21.1]}
31. Nb5 {[%clk 0:01:11.9]} 31... Qe7 {[%clk 0:01:20.1]} 32. Qxa5 {[%clk
0:01:09.5]} 1-0

[Event "Early-Titled-Tuesday-Blitz-September-12-2023"]
[Site "Chess.com"]
[Date "2023.09.12"]
[Round "2"]
[White "Oleksandr_Bortnyk"]
[Black "guillembaches"]
[Result "1-0"]
[WhiteElo "3020"]
[BlackElo "2533"]
[TimeControl "180+1"]
[EndTime "8:15:58 PDT"]
[Termination "Oleksandr_Bortnyk won on time"]

1. e4 {[%clk 0:03:00.9]} 1... d5 {[%clk 0:02:59.8]} 2. e5 {[%clk 0:02:57.3]}
2... c5 {[%clk 0:02:58.7]} 3. d4 {[%clk 0:02:56]} 3... cxd4 {[%clk 0:02:48.6]}
4. f4 {[%clk 0:02:54.4]} 4... Nc6 {[%clk 0:02:44.5]} 5. Nf3 {[%clk 0:02:54.3]}
5... g6 {[%clk 0:02:32.6]} 6. Nxd4 {[%clk 0:02:50.2]} 6... Nh6 {[%clk
0:02:26.1]} 7. Nc3 {[%clk 0:02:46.8]} 7... Bg4 {[%clk 0:02:18.4]} 8. Qd2 {[%clk
0:02:39.6]} 8... Bg7 {[%clk 0:02:12.5]} 9. h3 {[%clk 0:02:39.5]} 9... Bc8 {[%clk
0:02:05.1]} 10. Bb5 {[%clk 0:02:35.1]} 10... O-O {[%clk 0:02:02.1]} 11. Bxc6
{[%clk 0:02:20]} 11... bxc6 {[%clk 0:02:02]} 12. Nxc6 {[%clk 0:02:20.9]} 12...
Qd7 {[%clk 0:01:45.7]} 13. Qxd5 {[%clk 0:02:18.7]} 13... Nf5 {[%clk 0:01:38.5]}
14. g4 {[%clk 0:02:14.9]} 14... Nh4 {[%clk 0:01:25.2]} 15. Qxd7 {[%clk
0:02:11.7]} 15... Bxd7 {[%clk 0:01:26.1]} 16. Nxe7+ {[%clk 0:02:12.5]} 16... Kh8
{[%clk 0:01:26.2]} 17. Kf2 {[%clk 0:01:55.1]} 17... f6 {[%clk 0:01:21.7]} 18.
exf6 {[%clk 0:01:53.8]} 18... Bxf6 {[%clk 0:01:17.9]} 19. Ned5 {[%clk
0:01:53.7]} 19... Bd4+ {[%clk 0:01:12.9]} 20. Kg3 {[%clk 0:01:52.8]} 20... Rae8
{[%clk 0:00:48.2]} 21. Rd1 {[%clk 0:01:46]} 21... Bc5 {[%clk 0:00:34.2]} 22. b4
{[%clk 0:01:45.9]} 1-0

[Event "Early-Titled-Tuesday-Blitz-September-12-2023"]
[Site "Chess.com"]
[Date "2023.09.12"]
[Round "2"]
[White "profedechess93"]
[Black "rachidhuilda"]
[Result "1-0"]
[WhiteElo "2670"]
[BlackElo "2412"]
[TimeControl "180+1"]
[EndTime "8:15:58 PDT"]
[Termination "profedechess93 won on time"]

1. e4 {[%clk 0:02:55.8]} 1... d5 {[%clk 0:02:06.2]} 2. exd5 {[%clk 0:02:51.5]}
2... Qxd5 {[%clk 0:02:02.1]} 3. Nc3 {[%clk 0:02:51.2]} 3... Qa5 {[%clk
0:01:45.5]} 4. d4 {[%clk 0:02:51.4]} 4... c6 {[%clk 0:01:41.8]} 5. Nf3 {[%clk
0:02:51.2]} 5... Nf6 {[%clk 0:01:29.5]} 6. Bd2 {[%clk 0:02:50.8]} 6... Bf5
{[%clk 0:01:25.9]} 7. Bc4 {[%clk 0:02:50.7]} 7... e6 {[%clk 0:01:24.8]} 8. Nd5
{[%clk 0:02:50.6]} 8... Qd8 {[%clk 0:01:24.4]} 9. Nxf6+ {[%clk 0:02:50.8]} 9...
gxf6 {[%clk 0:01:24.6]} 10. Qe2 {[%clk 0:02:49.6]} 10... Bxc2 {[%clk 0:01:22.5]}
11. O-O {[%clk 0:02:48.2]} 11... Bg6 {[%clk 0:01:22.1]} 12. Rfe1 {[%clk
0:02:44.3]} 12... Be7 {[%clk 0:01:20.6]} 13. Bh6 {[%clk 0:02:38.8]} 13... Nd7
{[%clk 0:01:20.6]} 14. Nh4 {[%clk 0:02:31.4]} 14... Nb6 {[%clk 0:01:19.4]} 15.
Bxe6 {[%clk 0:02:27.5]} 15... fxe6 {[%clk 0:01:18.9]} 16. Qxe6 {[%clk
0:02:28.2]} 16... Nd5 {[%clk 0:01:03.3]} 17. Nxg6 {[%clk 0:02:22.4]} 17... hxg6
{[%clk 0:00:58.8]} 18. Bg7 {[%clk 0:02:22.5]} 18... Rf8 {[%clk 0:00:31.9]} 19.
Bxf8 {[%clk 0:02:19.6]} 19... Kxf8 {[%clk 0:00:31.6]} 20. Qg4 {[%clk 0:02:10.3]}
20... Kf7 {[%clk 0:00:27.5]} 21. Re6 {[%clk 0:02:08.3]} 21... Qd7 {[%clk
0:00:25.3]} 22. Rae1 {[%clk 0:02:08]} 22... Rd8 {[%clk 0:00:21.5]} 23. h4 {[%clk
0:02:06.8]} 23... f5 {[%clk 0:00:18.6]} 24. Qxg6+ {[%clk 0:02:06.2]} 24... Kf8
{[%clk 0:00:18.1]} 25. Qxf5+ {[%clk 0:02:06.4]} 25... Kg8 {[%clk 0:00:17.6]} 26.
Rg6+ {[%clk 0:02:05.6]} 1-0

[Event "Early-Titled-Tuesday-Blitz-September-12-2023"]
[Site "Chess.com"]
[Date "2023.09.12"]
[Round "2"]
[White "AnaKuchava"]
[Black "colegiodemadrid"]
[Result "0-1"]
[WhiteElo "2209"]
[BlackElo "2486"]
[TimeControl "180+1"]
[EndTime "8:15:58 PDT"]
[Termination "colegiodemadrid won on time"]

1. d4 {[%clk 0:03:00.9]} 1... Nf6 {[%clk 0:02:58.2]} 2. Nf3 {[%clk 0:03:00.4]}
2... g6 {[%clk 0:02:58.7]} 3. c4 {[%clk 0:02:59.2]} 3... Bg7 {[%clk 0:02:59.1]}
4. Nc3 {[%clk 0:02:58.1]} 4... O-O {[%clk 0:02:59.1]} 5. e4 {[%clk 0:02:58.1]}
5... d6 {[%clk 0:02:59.1]} 6. Be2 {[%clk 0:02:57.6]} 6... e5 {[%clk 0:02:58.6]}
7. O-O {[%clk 0:02:57.4]} 7... exd4 {[%clk 0:02:58.9]} 8. Nxd4 {[%clk
0:02:57.1]} 8... Re8 {[%clk 0:02:59.6]} 9. f3 {[%clk 0:02:53]} 9... c6 {[%clk
0:02:59.3]} 10. Be3 {[%clk 0:02:48.6]} 10... d5 {[%clk 0:02:58.1]} 11. cxd5
{[%clk 0:02:24.9]} 11... Nxd5 {[%clk 0:02:57.5]} 12. Bf2 {[%clk 0:02:00.3]}
12... Nf4 {[%clk 0:02:43.2]} 13. Re1 {[%clk 0:01:46.8]} 13... Qg5 {[%clk
0:02:37.9]} 14. Bg3 {[%clk 0:01:43.8]} 14... Rd8 {[%clk 0:02:25.9]} 15. Qc1
{[%clk 0:00:56.7]} 15... Bxd4+ {[%clk 0:02:20.6]} 16. Kh1 {[%clk 0:00:56.5]}
16... Ne6 {[%clk 0:02:11.3]} 17. Qc2 {[%clk 0:00:50.9]} 17... Be5 {[%clk
0:02:03.1]} 18. Bxe5 {[%clk 0:00:17.3]} 18... Qxe5 {[%clk 0:02:03.7]} 19. Rad1
{[%clk 0:00:17.6]} 19... Rxd1 {[%clk 0:02:00.3]} 20. Rxd1 {[%clk 0:00:18.5]}
20... Nd7 {[%clk 0:01:59.8]} 21. Qd2 {[%clk 0:00:14.5]} 21... Ndf8 {[%clk
0:01:55.5]} 22. Qe3 {[%clk 0:00:12.6]} 22... b6 {[%clk 0:01:50.4]} 0-1

[Event "Early-Titled-Tuesday-Blitz-September-12-2023"]
[Site "Chess.com"]
[Date "2023.09.12"]
[Round "2"]
[White "LevonAronian"]
[Black "chess123456s"]
[Result "1-0"]
[WhiteElo "3035"]
[BlackElo "2633"]
[TimeControl "180+1"]
[EndTime "8:16:00 PDT"]
[Termination "LevonAronian won by resignation"]

1. e4 {[%clk 0:03:00.9]} 1... e5 {[%clk 0:02:57.4]} 2. Nf3 {[%clk 0:03:00.2]}
2... Nc6 {[%clk 0:02:57.9]} 3. Bc4 {[%clk 0:03:00.1]} 3... Nf6 {[%clk
0:02:57.7]} 4. Ng5 {[%clk 0:02:59.8]} 4... d5 {[%clk 0:02:57.6]} 5. exd5 {[%clk
0:03:00.3]} 5... Na5 {[%clk 0:02:57.8]} 6. Bb5+ {[%clk 0:03:00.8]} 6... c6
{[%clk 0:02:58.3]} 7. dxc6 {[%clk 0:03:01.3]} 7... bxc6 {[%clk 0:02:59.2]} 8.
Be2 {[%clk 0:03:01.7]} 8... h6 {[%clk 0:02:59.1]} 9. Nh3 {[%clk 0:03:01.9]} 9...
Bd6 {[%clk 0:02:51.2]} 10. d3 {[%clk 0:03:00.4]} 10... O-O {[%clk 0:02:51.1]}
11. O-O {[%clk 0:02:59.2]} 11... c5 {[%clk 0:02:51.5]} 12. Kh1 {[%clk
0:02:55.3]} 12... Rb8 {[%clk 0:02:50.3]} 13. Ng1 {[%clk 0:02:52.9]} 13... Nc6
{[%clk 0:02:47.4]} 14. c3 {[%clk 0:02:50.7]} 14... Bf5 {[%clk 0:02:46.4]} 15.
Nd2 {[%clk 0:02:47.7]} 15... Re8 {[%clk 0:02:44.4]} 16. Bf3 {[%clk 0:02:42.5]}
16... Ne7 {[%clk 0:02:35.2]} 17. Ne4 {[%clk 0:02:41.9]} 17... Ng6 {[%clk
0:02:33.5]} 18. b3 {[%clk 0:02:34.4]} 18... Nh4 {[%clk 0:02:29.8]} 19. Be3
{[%clk 0:02:26.9]} 19... Rc8 {[%clk 0:02:06.8]} 20. Ng3 {[%clk 0:02:13.2]} 20...
Nxf3 {[%clk 0:02:00.1]} 21. Nxf5 {[%clk 0:02:05]} 21... Nxg1 {[%clk 0:01:59.7]}
22. Kxg1 {[%clk 0:02:03.1]} 22... Bf8 {[%clk 0:01:57.4]} 23. Qf3 {[%clk
0:01:53.6]} 23... Qxd3 {[%clk 0:01:40.2]} 24. Nxh6+ {[%clk 0:01:53.4]} 24...
gxh6 {[%clk 0:01:39.4]} 25. Qxf6 {[%clk 0:01:53.3]} 25... Bg7 {[%clk 0:01:37.4]}
26. Qh4 {[%clk 0:01:44.3]} 26... Re6 {[%clk 0:01:27.6]} 27. c4 {[%clk
0:01:33.6]} 27... Rg6 {[%clk 0:01:23.5]} 28. Rad1 {[%clk 0:01:26.3]} 28... Qe2
{[%clk 0:01:20.6]} 29. Qh3 {[%clk 0:01:14.6]} 29... Re8 {[%clk 0:01:03.5]} 30.
Rd2 {[%clk 0:01:13.1]} 30... Qg4 {[%clk 0:01:03.2]} 31. Qxg4 {[%clk 0:01:12.6]}
31... Rxg4 {[%clk 0:01:04.1]} 32. Bxc5 {[%clk 0:01:12.8]} 32... e4 {[%clk
0:01:03.6]} 33. Bxa7 {[%clk 0:01:11]} 1-0

[Event "Early-Titled-Tuesday-Blitz-September-12-2023"]
[Site "Chess.com"]
[Date "2023.09.12"]
[Round "2"]
[White "mishanick"]
[Black "TregubovP"]
[Result "1-0"]
[WhiteElo "3084"]
[BlackElo "2655"]
[TimeControl "180+1"]
[EndTime "8:16:01 PDT"]
[Termination "mishanick won by resignation"]

1. d4 {[%clk 0:03:00.9]} 1... Nf6 {[%clk 0:02:54.9]} 2. c4 {[%clk 0:03:01.5]}
2... e6 {[%clk 0:02:55.1]} 3. Nc3 {[%clk 0:03:02.1]} 3... Bb4 {[%clk 0:02:54.5]}
4. e3 {[%clk 0:03:02.6]} 4... O-O {[%clk 0:02:53.9]} 5. Bd3 {[%clk 0:03:03.2]}
5... d5 {[%clk 0:02:52.8]} 6. a3 {[%clk 0:03:02]} 6... Bxc3+ {[%clk 0:02:49.8]}
7. bxc3 {[%clk 0:03:02.9]} 7... b6 {[%clk 0:02:46.1]} 8. cxd5 {[%clk 0:02:59.1]}
8... exd5 {[%clk 0:02:44.8]} 9. f3 {[%clk 0:02:59]} 9... c5 {[%clk 0:02:44.8]}
10. Ne2 {[%clk 0:02:58.7]} 10... Ba6 {[%clk 0:02:24.6]} 11. O-O {[%clk
0:02:57.1]} 11... Re8 {[%clk 0:02:23.1]} 12. Ng3 {[%clk 0:02:57.1]} 12... Bxd3
{[%clk 0:02:09.3]} 13. Qxd3 {[%clk 0:02:58]} 13... Nc6 {[%clk 0:02:09.6]} 14.
Bb2 {[%clk 0:02:58.6]} 14... h5 {[%clk 0:01:57.6]} 15. e4 {[%clk 0:02:58.9]}
15... h4 {[%clk 0:01:53.9]} 16. Nf5 {[%clk 0:02:58.8]} 16... dxe4 {[%clk
0:01:47.7]} 17. fxe4 {[%clk 0:02:59.7]} 17... Rxe4 {[%clk 0:01:35.8]} 18. Nxg7
{[%clk 0:02:33.8]} 18... c4 {[%clk 0:00:58.5]} 19. Qxc4 {[%clk 0:02:18.1]} 19...
Kxg7 {[%clk 0:00:58.4]} 20. Qxc6 {[%clk 0:02:15.2]} 20... Rc8 {[%clk 0:00:59]}
21. Qb5 {[%clk 0:02:12.3]} 21... Qd5 {[%clk 0:00:56.1]} 22. Qd3 {[%clk
0:02:12.1]} 22... Nh5 {[%clk 0:00:39.7]} 23. Rf2 {[%clk 0:01:51.9]} 23... Nf4
{[%clk 0:00:31.7]} 24. Qf3 {[%clk 0:01:45.3]} 24... Ng6 {[%clk 0:00:28.6]} 25.
Raf1 {[%clk 0:01:41]} 25... Rc7 {[%clk 0:00:16.7]} 26. c4 {[%clk 0:01:39.9]} 1-0

[Event "Early-Titled-Tuesday-Blitz-September-12-2023"]
[Site "Chess.com"]
[Date "2023.09.12"]
[Round "2"]
[White "vladislavkovalev"]
[Black "Shuvalov"]
[Result "1-0"]
[WhiteElo "2889"]
[BlackElo "2428"]
[TimeControl "180+1"]
[EndTime "8:16:03 PDT"]
[Termination "vladislavkovalev won by resignation"]

1. e4 {[%clk 0:03:00.9]} 1... e6 {[%clk 0:02:47.3]} 2. d4 {[%clk 0:02:59.7]}
2... d5 {[%clk 0:02:47.1]} 3. Bd3 {[%clk 0:03:00.2]} 3... c5 {[%clk 0:02:45.9]}
4. exd5 {[%clk 0:03:00.6]} 4... exd5 {[%clk 0:02:46.8]} 5. Nf3 {[%clk
0:03:01.1]} 5... c4 {[%clk 0:02:45.6]} 6. Be2 {[%clk 0:03:01.2]} 6... Nf6 {[%clk
0:02:46.1]} 7. O-O {[%clk 0:03:02]} 7... Be7 {[%clk 0:02:45.6]} 8. Ne5 {[%clk
0:03:02.4]} 8... Nc6 {[%clk 0:02:44.9]} 9. c3 {[%clk 0:03:01.7]} 9... O-O {[%clk
0:02:44.4]} 10. Re1 {[%clk 0:03:02.2]} 10... Bf5 {[%clk 0:02:41.9]} 11. Bf4
{[%clk 0:02:58.7]} 11... Re8 {[%clk 0:02:39.9]} 12. Nd2 {[%clk 0:02:59.1]} 12...
Rc8 {[%clk 0:02:34.8]} 13. g4 {[%clk 0:02:47.8]} 13... Be6 {[%clk 0:02:25.9]}
14. Bg3 {[%clk 0:02:46.4]} 14... Bd6 {[%clk 0:02:18.9]} 15. f4 {[%clk 0:02:41]}
15... Nd7 {[%clk 0:02:11.1]} 16. Nxc6 {[%clk 0:02:04.1]} 16... Rxc6 {[%clk
0:01:58.3]} 17. f5 {[%clk 0:02:04.5]} 17... Bxg3 {[%clk 0:01:53.6]} 18. hxg3
{[%clk 0:02:05.4]} 18... Qg5 {[%clk 0:01:46.5]} 19. Bf3 {[%clk 0:02:00.5]} 19...
Nf6 {[%clk 0:01:42.2]} 20. fxe6 {[%clk 0:01:57.9]} 20... Rcxe6 {[%clk
0:01:43.1]} 21. Rxe6 {[%clk 0:01:55.4]} 21... Rxe6 {[%clk 0:01:44]} 22. Nf1
{[%clk 0:01:52.3]} 22... Ne4 {[%clk 0:01:33]} 23. Qc1 {[%clk 0:01:44.1]} 23...
Qg6 {[%clk 0:01:26.3]} 24. Qf4 {[%clk 0:01:40.8]} 24... h6 {[%clk 0:01:21.4]}
25. Re1 {[%clk 0:01:35.9]} 25... Rf6 {[%clk 0:01:19.2]} 26. Bxe4 {[%clk
0:01:34.1]} 26... dxe4 {[%clk 0:01:15.6]} 27. Qxe4 {[%clk 0:01:34.6]} 27... Qg5
{[%clk 0:01:15.6]} 28. Qe3 {[%clk 0:01:14.4]} 28... Qg6 {[%clk 0:01:04.7]} 29.
Qe8+ {[%clk 0:01:13.7]} 29... Kh7 {[%clk 0:01:04.5]} 30. Qe4 {[%clk 0:01:14.6]}
30... b5 {[%clk 0:01:02.1]} 31. Qxg6+ {[%clk 0:01:14.5]} 31... Kxg6 {[%clk
0:01:03]} 32. Re5 {[%clk 0:01:13.4]} 32... a6 {[%clk 0:01:01.6]} 33. Ne3 {[%clk
0:01:13.8]} 1-0

[Event "Early-Titled-Tuesday-Blitz-September-12-2023"]
[Site "Chess.com"]
[Date "2023.09.12"]
[Round "2"]
[White "Chessbard1972"]
[Black "CixPer1968"]
[Result "1-0"]
[WhiteElo "2479"]
[BlackElo "2171"]
[TimeControl "180+1"]
[EndTime "8:16:03 PDT"]
[Termination "Chessbard1972 won by resignation"]

1. d4 {[%clk 0:02:57.9]} 1... d5 {[%clk 0:02:57.7]} 2. c4 {[%clk 0:02:57.4]}
2... c6 {[%clk 0:02:58]} 3. Nf3 {[%clk 0:02:55.8]} 3... Nf6 {[%clk 0:02:57.9]}
4. Nc3 {[%clk 0:02:54.3]} 4... dxc4 {[%clk 0:02:57.9]} 5. a4 {[%clk 0:02:49]}
5... Bf5 {[%clk 0:02:57.5]} 6. e3 {[%clk 0:02:49.4]} 6... e6 {[%clk 0:02:57.3]}
7. Bxc4 {[%clk 0:02:49.2]} 7... Bb4 {[%clk 0:02:57.3]} 8. O-O {[%clk 0:02:48.3]}
8... Nbd7 {[%clk 0:02:57.9]} 9. Qe2 {[%clk 0:02:48]} 9... O-O {[%clk 0:02:53.5]}
10. e4 {[%clk 0:02:46.9]} 10... Bg4 {[%clk 0:02:53.5]} 11. e5 {[%clk 0:02:41.6]}
11... Nd5 {[%clk 0:02:50.2]} 12. Nxd5 {[%clk 0:02:41]} 12... cxd5 {[%clk
0:02:46.8]} 13. Bd3 {[%clk 0:02:41.1]} 13... Rc8 {[%clk 0:02:34]} 14. Qe3 {[%clk
0:02:39]} 14... Bh5 {[%clk 0:02:22.5]} 15. Bd2 {[%clk 0:02:30.1]} 15... Bxd2
{[%clk 0:02:17]} 16. Nxd2 {[%clk 0:02:29.1]} 16... Bg6 {[%clk 0:02:16.1]} 17.
Bxg6 {[%clk 0:02:24.9]} 17... hxg6 {[%clk 0:02:16.8]} 18. Rfc1 {[%clk
0:02:21.5]} 18... Qb6 {[%clk 0:02:14.4]} 19. b3 {[%clk 0:02:19.5]} 19... Rc6
{[%clk 0:02:05.9]} 20. Nf3 {[%clk 0:02:18.6]} 20... Rfc8 {[%clk 0:02:04.8]} 21.
Rxc6 {[%clk 0:02:15.9]} 21... Rxc6 {[%clk 0:02:05.7]} 22. Ng5 {[%clk 0:02:10.2]}
22... Qb4 {[%clk 0:02:00.1]} 23. Qf4 {[%clk 0:02:01.8]} 23... Qe7 {[%clk
0:01:56.1]} 24. Rc1 {[%clk 0:01:58]} 24... Nb8 {[%clk 0:01:34.8]} 25. h3 {[%clk
0:01:47]} 25... a5 {[%clk 0:01:30.4]} 26. Rxc6 {[%clk 0:01:41.8]} 26... Nxc6
{[%clk 0:01:29.3]} 27. Qh4 {[%clk 0:01:41.8]} 1-0

[Event "Early-Titled-Tuesday-Blitz-September-12-2023"]
[Site "Chess.com"]
[Date "2023.09.12"]
[Round "2"]
[White "masterofpuppets2"]
[Black "Shield12"]
[Result "0-1"]
[WhiteElo "2504"]
[BlackElo "2965"]
[TimeControl "180+1"]
[EndTime "8:16:06 PDT"]
[Termination "Shield12 won by resignation"]

1. d4 {[%clk 0:02:57.2]} 1... Nf6 {[%clk 0:02:59.6]} 2. c4 {[%clk 0:02:57]} 2...
e6 {[%clk 0:02:59.8]} 3. Nf3 {[%clk 0:02:57.4]} 3... d5 {[%clk 0:02:58.4]} 4.
Nc3 {[%clk 0:02:55.8]} 4... Bb4 {[%clk 0:02:58.1]} 5. Qa4+ {[%clk 0:02:55.4]}
5... Nc6 {[%clk 0:02:57.8]} 6. cxd5 {[%clk 0:02:55.9]} 6... exd5 {[%clk
0:02:57.2]} 7. Bg5 {[%clk 0:02:55.5]} 7... h6 {[%clk 0:02:56.7]} 8. Bxf6 {[%clk
0:02:55.3]} 8... Qxf6 {[%clk 0:02:57.6]} 9. e3 {[%clk 0:02:55.7]} 9... O-O
{[%clk 0:02:57.7]} 10. Be2 {[%clk 0:02:55.8]} 10... Be6 {[%clk 0:02:55.7]} 11.
O-O {[%clk 0:02:54.1]} 11... a6 {[%clk 0:02:55]} 12. Qc2 {[%clk 0:02:52.8]}
12... Bd6 {[%clk 0:02:54.6]} 13. Na4 {[%clk 0:02:50.8]} 13... Ne7 {[%clk
0:02:51.1]} 14. Nc5 {[%clk 0:02:45.8]} 14... Bc8 {[%clk 0:02:50.8]} 15. Rfc1
{[%clk 0:02:30.5]} 15... Re8 {[%clk 0:02:49.3]} 16. b4 {[%clk 0:02:26.7]} 16...
g5 {[%clk 0:02:48.1]} 17. Nd3 {[%clk 0:02:12.5]} 17... Ng6 {[%clk 0:02:45.7]}
18. Qc3 {[%clk 0:01:59.2]} 18... c6 {[%clk 0:02:43.4]} 19. a4 {[%clk 0:01:58.2]}
19... g4 {[%clk 0:02:41.7]} 20. Nd2 {[%clk 0:01:46.9]} 20... h5 {[%clk 0:02:37]}
21. b5 {[%clk 0:01:41.6]} 21... axb5 {[%clk 0:02:32.6]} 22. axb5 {[%clk
0:01:40.8]} 22... Rxa1 {[%clk 0:02:33.5]} 23. Rxa1 {[%clk 0:01:37.2]} 23... h4
{[%clk 0:02:32.5]} 24. Nf1 {[%clk 0:01:26]} 24... g3 {[%clk 0:02:29.5]} 25. hxg3
{[%clk 0:01:15.4]} 25... hxg3 {[%clk 0:02:30.4]} 26. fxg3 {[%clk 0:01:11.6]}
26... cxb5 {[%clk 0:02:16.4]} 27. Nf4 {[%clk 0:01:03]} 27... Bxf4 {[%clk
0:02:04.7]} 28. gxf4 {[%clk 0:01:00.2]} 28... Bf5 {[%clk 0:02:05.1]} 29. Bxb5
{[%clk 0:00:54]} 29... Rc8 {[%clk 0:02:01.7]} 30. Qd2 {[%clk 0:00:50.3]} 30...
Rc2 {[%clk 0:01:59.8]} 31. Qe1 {[%clk 0:00:46.7]} 31... Be4 {[%clk 0:01:58.8]}
32. Ng3 {[%clk 0:00:46.6]} 32... Rxg2+ {[%clk 0:01:57]} 33. Kf1 {[%clk
0:00:45.1]} 33... Qh4 {[%clk 0:01:57.4]} 34. Ra8+ {[%clk 0:00:41.9]} 34... Kh7
{[%clk 0:01:56.4]} 35. Bd3 {[%clk 0:00:33.8]} 35... Qh2 {[%clk 0:01:52.9]} 0-1